fUSD/lending_fUSD_20251129
["ID","MTS","AMOUNT","RATE_DAILY","PERIOD"]
[395076582,1764404284915,2803.34,0.00011613,2]
[395076583,1764404285024,2803.34,0.00012,2]
[395076584,1764404285133,2803.34,0.00012387,2]
[395076585,1764404285331,753.28,0.00012774,2]
[395076586,1764404285359,2050.06,0.00012774,2]
[395076587,1764404285537,2803.34,0.00013161,2]
[395076588,1764404285736,2803.34,0.00013549,2]
[395076589,1764404285948,2343.27,0.00013936,2]
[395076590,1764404285977,460.07,0.00013936,2]
[395076591,1764404286144,2803.34,0.00014323,2]
[395076592,1764404286351,2803.34,0.0001471,2]
[395076593,1764404287957,3933.26,7.945e-05,2]
[395076594,1764404287986,3288.702684,7.945e-05,2]
[395076595,1764404308752,250.0,0.00012709,2]
[395076597,1764404348422,7715.862794,7.945e-05,2]
[395076598,1764404350147,250.0,0.00013007,2]
[395076599,1764404430085,206.01278243,0.00014722,2]
[395076610,1764404685058,211.74,0.0001419,2]
[395076612,1764404725638,1022.05984194,0.000108,2]
[395076613,1764404754707,10000.01,0.000146,2]
[395076614,1764404754993,10000.01,0.000146,2]
[395076615,1764404755016,2336.34880038,0.000146,2]
[395076616,1764404762401,7663.66119962,8e-05,2]
[395076617,1764404762425,2341.79656261,8e-05,2]
[395076618,1764404766176,196.71085429,0.00014717,2]
[395076619,1764404766456,7461.5025831,0.00011,2]
[395076620,1764404766480,1909.38627021,0.00011,2]
[395076622,1764404834757,205.0,9.8e-05,2]
[395076623,1764404838149,5314.15578336,0.0001305,2]
[395076624,1764404838417,258.44025933,0.000101,2]
[395076629,1764404869751,2313.0276871,0.00013,2]
[395076630,1764404869775,2087.93653793,0.00013,2]
[395076631,1764404891079,7912.07346207,0.0001439,2]
[395076632,1764404891103,2338.3012053,0.0001439,2]
[395076633,1764404894239,1000.0,0.000135,2]
[395076634,1764404894438,305.65891292,0.000125,2]
[395076635,1764404897472,200.03822565,0.000143,2]
[395076636,1764404901622,1321.4064631,0.0001,2]
[395076637,1764404903329,389.40024064,7.888e-05,2]
[395076638,1764404906491,278.13815528,0.00013,2]
[395076639,1764404906576,3738.81954514,0.00013,2]
[395076640,1764404914627,2719.91850894,0.0001,2]
[395076641,1764404919233,46.62994833,0.00013,2]
[395076642,1764404919256,783.37005167,0.00013,2]
[395076645,1764404925706,10000.01,0.0001,2]
[395076646,1764404925732,3449.88787811,0.0001,2]
[395076647,1764404932898,200.0,0.00014035,2]
[395076648,1764404947837,1535.386896,7.945e-05,2]
[395076671,1764404997656,1144.01555456,0.00014719,2]
[395076686,1764405032286,-300.0,0.00014816,2]
[395076687,1764405032302,-300.0,0.00014816,2]
[395076688,1764405032318,-300.0,0.00014816,2]
[395076689,1764405032334,-1200.0,0.00014816,2]
[395076690,1764405032349,-150.0,0.00014816,2]
[395076691,1764405032365,-210.0,0.00014816,2]
[395076694,1764405032380,-1115.0,0.00014817,2]
[395076696,1764405032395,-161.97372963,0.00014817,2]
[395076699,1764405032411,-500.0,0.00014817,2]
[395076700,1764405032428,-500.0,0.00014817,2]
[395076701,1764405032443,-500.0,0.00014817,2]
[395076702,1764405032460,-500.0,0.00014817,2]
[395076703,1764405032475,-500.0,0.00014817,2]
[395076704,1764405032490,-500.0,0.00014817,2]
[395076705,1764405032504,-186.2891419,0.00014817,2]
[395076706,1764405032520,-500.0,0.00014817,2]
[395076707,1764405032534,-500.0,0.00014817,2]
[395076708,1764405032543,-500.0,0.00014817,2]
[395076709,1764405032552,-500.0,0.00014817,2]
[395076710,1764405032562,-500.0,0.00014817,2]
[395076711,1764405032571,-500.0,0.00014817,2]
[395076712,1764405032581,-500.0,0.00014817,2]
[395076713,1764405032590,-500.0,0.00014817,2]
[395076714,1764405032600,-500.0,0.00014817,2]
[395076715,1764405032609,-500.0,0.00014817,2]
[395076716,1764405032620,-500.0,0.00014817,2]
[395076717,1764405032630,-500.0,0.00014817,2]
[395076718,1764405032640,-500.0,0.00014817,2]
[395076719,1764405032650,-500.0,0.00014817,2]
[395076720,1764405033093,-500.0,0.00014817,2]
[395076721,1764405033138,-500.0,0.00014817,2]
[395076722,1764405033163,-500.0,0.00014817,2]
[395076723,1764405033174,-500.0,0.00014817,2]
[395076724,1764405033184,-500.0,0.00014817,2]
[395076725,1764405033195,-500.0,0.00014817,2]
[395076726,1764405033206,-500.0,0.00014817,2]
[395076727,1764405033216,-500.0,0.00014817,2]
[395076728,1764405033226,-500.0,0.00014817,2]
[395076729,1764405033236,-500.0,0.00014817,2]
[395076730,1764405033246,-500.0,0.00014817,2]
[395076731,1764405033256,-500.0,0.00014817,2]
[395076732,1764405033268,-500.0,0.00014817,2]
[395076733,1764405033278,-367.76554986,0.00014817,2]
[395076734,1764405033287,-500.0,0.00014817,2]
[395076735,1764405033298,-500.0,0.00014817,2]
[395076736,1764405033307,-500.0,0.00014817,2]
[395076737,1764405033316,-500.0,0.00014817,2]
[395076738,1764405033326,-500.0,0.00014817,2]
[395076739,1764405033336,-500.0,0.00014817,2]
[395076740,1764405033348,-500.0,0.00014817,2]
[395076741,1764405033357,-500.0,0.00014817,2]
[395076742,1764405033367,-500.0,0.00014817,2]
[395076743,1764405033376,-500.0,0.00014817,2]
[395076744,1764405033385,-500.0,0.00014817,2]
[395076745,1764405033396,-500.0,0.00014817,2]
[395076746,1764405033405,-500.0,0.00014817,2]
[395076747,1764405033415,-550.0,0.00014817,2]
[395076748,1764405033424,-500.0,0.00014817,2]
[395076749,1764405033441,-250.0,0.00014818,2]
[395076750,1764405033453,-6695.04682502,0.00014818,2]
[395076751,1764405033462,-1636.3286,0.00014818,2]
[395076752,1764405033472,-8904.7967,0.00014818,2]
[395076753,1764405033482,-53468.6224641,0.00014818,2]
[395076754,1764405033495,-9119.87424701,0.00014818,2]
[395076755,1764405033523,-8543.41983538,0.00014818,2]
[395076756,1764405033534,-3435.68688552,0.00014818,2]
[395076757,1764405033553,-287.06431718,0.00014818,2]
[395076758,1764405033564,-2609.5598784,0.00014818,2]
[395076759,1764405033642,-819.78286601,0.00014818,2]
[395076760,1764405038109,-358.33485164,0.00014818,2]
[395076761,1764405038124,-488.66430191,0.00014818,2]
[395076762,1764405038138,-254.18043806,0.00014818,2]
[395076763,1764405038202,-8642.870684,0.00014818,2]
[395076764,1764405038241,-2051.65960346,0.00014818,2]
[395076765,1764405038388,-1221.26746359,0.00014818,2]
[395076766,1764405038400,-2053.64958982,0.00014818,2]
[395076767,1764405038418,-1513.88525483,0.00014818,2]
[395076771,1764405040436,-985.9370657,0.00014818,2]
[395076772,1764405040547,-588.5642233,0.00014818,2]
[395076773,1764405040559,-1714.86165,0.00014818,2]
[395076782,1764405044558,-1.7e-07,0.00014818,2]
[395076783,1764405045677,-19442.53499999,0.00014818,2]
[395076792,1764405046549,-16155.42291354,0.00014818,2]
[395076794,1764405074464,-217.76660372,0.00014818,2]
[395076795,1764405077297,-152.38,0.00014817,2]
[395076796,1764405079740,-167.09899149,0.00014817,2]
[395076797,1764405083336,-180.52100851,0.00014817,2]
[395076798,1764405083360,-44.38,0.00014817,2]
[395076799,1764405085426,-455.62,0.00014817,2]
[395076800,1764405085453,-86.95461671,0.00014817,2]
[395076801,1764405087545,-413.04538329,0.00014817,2]
[395076802,1764405087568,-389.66160532,0.00014817,2]
[395076803,1764405087592,-79.71839468,0.00014817,2]
[395076804,1764405092893,-157.51062533,0.00014817,2]
[395076805,1764405095128,-250.0,0.00014817,2]
[395076808,1764405179128,1000.0,0.00014117,2]
[395076809,1764405241013,250.0,0.00014116,2]
[395076810,1764405272304,1000.0,0.00014718,2]
[395076811,1764405340762,293.79,0.00019178,30]
[395076812,1764405364750,500.0,0.00014717,2]
[395076813,1764405382757,157.89,0.00014127,2]
[395076814,1764405419883,1000.0,0.00014718,2]
[395076815,1764405422248,6246.26853126,0.00014718,2]
[395076816,1764405490511,845.85146874,0.0001473,2]
[395076817,1764405490533,9154.14853126,0.0001473,2]
[395076818,1764405497713,845.86146874,0.0001473,2]
[395076819,1764405497734,9154.13853126,0.0001473,2]
[395076820,1764405504890,845.87146874,0.0001473,2]
[395076821,1764405504911,9154.12853126,0.0001473,2]
[395076822,1764405511272,845.88146874,0.0001473,2]
[395076823,1764405511296,9154.11853126,0.0001473,2]
[395076825,1764405532430,845.89146874,0.0001473,2]
[395076826,1764405532453,6154.10853126,0.0001473,2]
[395076827,1764405533711,500.0,0.00014716,2]
[395076829,1764405549701,3345.90146874,7.945e-05,2]
[395076830,1764405549724,2421.04555026,7.945e-05,2]
[395076831,1764405552497,300.0,0.0001473,2]
[395076832,1764405553136,1500.0,0.0001473,2]
[395076833,1764405558739,976.632,0.00014718,2]
[395076834,1764405564033,151.0,0.0001473,2]
[395076835,1764405564074,307.89911803,0.0001473,2]
[395076836,1764405584529,818.6939,0.00014718,2]
[395076837,1764405629818,1544.5344,0.00014718,2]
[395076838,1764405658601,7177.88258197,0.0001416,2]
[395076839,1764405658625,807.43741803,0.0001416,2]
[395076840,1764405704415,265.7932,0.00014716,2]
[395076841,1764405710747,157.51062532,0.00014713,2]
[395076842,1764405729170,1000.0,0.00014718,2]
[395076843,1764405839760,1261.03143333,0.00014728,2]
[395076844,1764405867519,3863.99,0.00014505,2]
[395076845,1764405905967,1910.97853199,0.0001473,2]
[395076846,1764405907455,2964.01003468,0.00014718,2]
[395076847,1764405907483,10000.01,0.00014718,2]
[395076848,1764405907509,10000.01,0.00014718,2]
[395076849,1764405907534,10000.01,0.00014718,2]
[395076850,1764405907559,10000.01,0.00014718,2]
[395076851,1764405907586,10000.01,0.00014718,2]
[395076852,1764405907612,10000.01,0.00014718,2]
[395076853,1764405907637,10000.01,0.00014718,2]
[395076854,1764405907663,10000.01,0.00014718,2]
[395076855,1764405907688,10000.01,0.00014718,2]
[395076856,1764405907723,550024.40206532,0.00014718,2]
[395076858,1764405930377,178.72,0.00011564,2]
[395076859,1764405930670,178.72,0.00013491,2]
[395076863,1764406016014,1355.59,0.00014153,2]
[395076868,1764406033367,973.18,0.00013699,2]
[395076882,1764406079299,10000.01,0.00014718,2]
[395076883,1764406079329,163053.5097,0.00014718,2]
[395076884,1764406082680,300.0,0.00014717,2]
[395076894,1764406194987,999.0,0.00014442,3]
[395076896,1764406200885,500.0,0.00014442,2]
[395076897,1764406206408,207.0,0.00014442,2]
[395076898,1764406209777,195.0,0.00014626,2]
[395076900,1764406232296,-5621.64167817,0.00014809,2]
[395076901,1764406232305,-6135.89319,0.0001481,2]
[395076902,1764406232314,-1134.24450077,0.0001481,2]
[395076903,1764406232325,-5001.64869923,0.0001481,2]
[395076904,1764406232334,-578.20924308,0.00014816,2]
[395076905,1764406232344,-500.0,0.00014817,2]
[395076906,1764406232353,-500.0,0.00014817,2]
[395076907,1764406232363,-154.40684504,0.00014817,2]
[395076908,1764406232372,-500.0,0.00014817,2]
[395076909,1764406232382,-150.3060483,0.00014817,2]
[395076910,1764406232392,-500.0,0.00014817,2]
[395076911,1764406232403,-500.0,0.00014817,2]
[395076913,1764406232412,-193.109424,0.00014817,2]
[395076915,1764406232422,-500.0,0.00014817,2]
[395076917,1764406232431,-500.0,0.00014817,2]
[395076918,1764406232442,-500.0,0.00014817,2]
[395076919,1764406232452,-500.0,0.00014817,2]
[395076920,1764406232462,-500.0,0.00014817,2]
[395076922,1764406232472,-80.48730199,0.00014817,2]
[395076923,1764406232483,-419.51269801,0.00014817,2]
[395076924,1764406232492,-500.0,0.00014817,2]
[395076925,1764406232501,-500.0,0.00014817,2]
[395076926,1764406232511,-500.0,0.00014817,2]
[395076927,1764406232524,-529.53138251,0.00014817,2]
[395076928,1764406232533,-500.0,0.00014817,2]
[395076929,1764406232543,-500.0,0.00014817,2]
[395076931,1764406232552,-500.0,0.00014817,2]
[395076932,1764406232561,-500.0,0.00014817,2]
[395076933,1764406232570,-500.0,0.00014817,2]
[395076934,1764406232579,-500.0,0.00014817,2]
[395076935,1764406232589,-500.0,0.00014817,2]
[395076936,1764406232598,-945.89,0.00014817,2]
[395076937,1764406232608,-19359.14731867,0.00014818,2]
[395076938,1764406232720,-4525.59677403,0.00014818,2]
[395076939,1764406232729,-200.0,0.00014818,2]
[395076940,1764406232738,-1616.87712413,0.00014818,2]
[395076941,1764406232825,-15021.60890437,0.00014818,2]
[395076942,1764406232834,-15982.38974517,0.00014818,2]
[395076950,1764406240389,-8630.54393053,0.00014818,2]
[395076951,1764406240398,-9625.97360178,0.00014818,2]
[395076952,1764406240411,-3030.02700006,0.00014818,2]
[395076953,1764406240422,-1192.86238444,0.00014818,2]
[395076959,1764406242076,-933.32179088,0.00014818,2]
[395076960,1764406242147,-1550.49926192,0.00014818,2]
[395076961,1764406242158,-429.90000018,0.00014818,2]
[395076962,1764406242246,-1369.36576728,0.00014818,2]
[395076963,1764406242341,-411.36390555,0.00014818,2]
[395076972,1764406246211,-5978.15202411,0.00014818,2]
[395076973,1764406246223,-908.29739,0.00014818,2]
[395076974,1764406246432,-17641.4,0.00014818,2]
[395076975,1764406246444,-4569.81967412,0.00014818,2]
[395076977,1764406246455,-407.59167863,0.00014818,2]
[395076978,1764406249812,1500.0,0.000145,2]
[395076979,1764406249914,-15457.0000001,0.00014818,2]
[395076980,1764406249970,-295.04953838,0.00014818,2]
[395076981,1764406251033,-1515.12186928,0.00014818,2]
[395076982,1764406251627,-317.8499993,0.00014818,2]
[395076983,1764406251651,-456.68,0.00014818,2]
[395076984,1764406252506,27995.5905,0.00014718,2]
[395076986,1764406418779,20751.9097,0.00014718,2]
[395076987,1764406479802,816.79,0.00014484,2]
[395076988,1764406555227,1157.48216,0.0001467,2]
[395076990,1764406682596,197.85872273,0.0001473,2]
[395076992,1764406780318,-1200.0,0.00014817,2]
[395076993,1764406780347,-300.0,0.00014817,2]
[395076994,1764406780375,-300.0,0.00014817,2]
[395076995,1764406780401,-150.0,0.00014817,2]
[395076996,1764406780428,-645.99783241,0.00014817,2]
[395076997,1764406780455,-500.0,0.00014817,2]
[395076998,1764406780484,-500.0,0.00014817,2]
[395076999,1764406780514,-500.0,0.00014817,2]
[395077000,1764406780541,-500.0,0.00014817,2]
[395077001,1764406780568,-360.48296472,0.00014817,2]
[395077002,1764406780833,-87.04840574,0.00014817,2]
[395077003,1764406780863,-614.39237584,0.00014817,2]
[395077004,1764406780891,-500.0,0.00014817,2]
[395077005,1764406780918,-500.0,0.00014817,2]
[395077006,1764406780945,-195.0,0.00014817,2]
[395077007,1764406780973,-250.0,0.00014817,2]
[395077008,1764406781001,-195.0,0.00014817,2]
[395077009,1764406781029,-314.25724306,0.00014818,2]
[395077010,1764406781985,-27.93543364,0.00014818,2]
[395077011,1764406781997,-4688.61395072,0.00014818,2]
[395077012,1764406782138,-10000.01,0.00014818,2]
[395077013,1764406782373,-10000.01,0.00014818,2]
[395077014,1764406782448,-10000.01,0.00014818,2]
[395077015,1764406782523,-10000.01,0.00014818,2]
[395077016,1764406782630,-10000.01,0.00014818,2]
[395077017,1764406782829,-9670.83374753,0.00014818,2]
[395077018,1764406782839,-329.17625247,0.00014818,2]
[395077019,1764406782901,-10000.01,0.00014818,2]
[395077020,1764406785020,-10000.01,0.00014818,2]
[395077021,1764406785054,-3775.79258103,0.00014818,2]
[395077022,1764406785224,-4275.7377995,0.00014818,2]
[395077023,1764406785372,-4117.66113,0.00014818,2]
[395077024,1764406785958,-446.24926917,0.00014818,2]
[395077025,1764406786018,-1606.6110705,0.00014818,2]
[395077026,1764406786050,-2448.42483794,0.00014818,2]
[395077027,1764406786146,-4275.7377995,0.00014818,2]
[395077028,1764406786159,-1448.534401,0.00014818,2]
[395077029,1764406786733,-4117.66113,0.00014818,2]
[395077030,1764406786746,-1764.68774,0.00014818,2]
[395077031,1764406788810,-1592.95039383,0.00014818,2]
[395077032,1764406790893,-500.0,0.00014818,2]
[395077033,1764406792816,-249.54801596,0.00014818,2]
[395077034,1764406794271,-198.98171055,0.00014818,2]
[395077035,1764406797246,-808.21882168,0.00014818,2]
[395077036,1764406801573,-156.69183458,0.00014817,2]
[395077037,1764406802867,-296.53582855,0.00014817,2]
[395077038,1764406804675,-46.77233687,0.00014817,2]
[395077039,1764406804709,-500.0,0.00014817,2]
[395077040,1764406804741,-269.95393764,0.00014817,2]
[395077041,1764406804770,-1200.0,0.00014817,2]
[395077042,1764406804803,-300.0,0.00014817,2]
[395077043,1764406804832,-150.0,0.00014817,2]
[395077044,1764406804862,-210.0,0.00014817,2]
[395077045,1764406805301,-4646.55745098,0.00014818,2]
[395077046,1764406805440,-10000.01,0.00014818,2]
[395077047,1764406809543,-174.03173377,0.00014818,2]
[395077048,1764406811462,-350.0,0.00014818,2]
[395077049,1764406812984,-182.9108029,0.00014818,2]
[395077050,1764406816738,-191.78117832,0.00014817,2]
[395077051,1764406819759,-255.01067821,0.00014817,2]
[395077052,1764406822924,-157.51062533,0.00014739,2]
[395077053,1764406822946,-53.20814347,0.00014817,2]
[395077054,1764406822969,-289.2812312,0.00014818,2]
[395077055,1764406825370,-397.31624994,0.00014818,2]
[395077056,1764406829861,-339.7753563,0.00014818,2]
[395077057,1764406834711,-191.78117832,0.00014818,2]
[395077058,1764406845504,-371.28199678,0.00014818,2]
[395077059,1764406851689,6439.15,0.00014472,2]
[395077060,1764406855957,-500.0,0.00014818,2]
[395077061,1764406865396,-500.0,0.00014817,2]
[395077062,1764406865425,-500.0,0.00014817,2]
[395077063,1764406870055,-308.21882185,0.00014818,2]
[395077064,1764406879709,-1560.86,0.00014818,2]
[395077065,1764406879778,-10000.01,0.00014818,2]
[395077066,1764406887435,-500.0,0.00014818,2]
[395077067,1764406899199,-10000.01,0.00014818,2]
[395077068,1764406905096,-2108.373604,0.00014744,2]
[395077069,1764406905304,-7891.636396,0.00014818,2]
[395077070,1764406905416,-9432.39639503,0.00014818,2]
[395077071,1764406905425,-567.61360497,0.00014818,2]
[395077072,1764406908895,-189.01799909,0.00014818,2]
[395077073,1764406926704,-4364.32835744,0.00014818,2]
[395077074,1764406926732,-200.0,0.00014818,2]
[395077075,1764406926937,-964.56847,0.00014818,2]
[395077076,1764406926966,-2498.2296,0.00014818,2]
[395077077,1764406926995,-195.0,0.0001482,2]
[395077078,1764406933652,-200.0,0.00014908,2]
[395077079,1764406942883,166.66,0.00013729,2]
[395077080,1764406943081,166.66,0.00014018,2]
[395077081,1764406943276,166.66,0.00014307,2]
[395077082,1764406943957,166.66,0.00014596,2]
[395077083,1764406944771,-1000.0,0.00014809,2]
[395077084,1764406944806,-166.66,0.00014885,2]
[395077085,1764406951081,48497.72216955,0.00014718,2]
[395077086,1764406953621,-2867.178326,0.00014718,2]
[395077087,1764406953676,-200.0,0.00014718,2]
[395077088,1764406953690,-871.35328512,0.00014718,2]
[395077089,1764406953781,-964.56847,0.00014718,2]
[395077090,1764406953851,-2498.2296,0.00014718,2]
[395077091,1764406953905,-195.0,0.00014718,2]
[395077092,1764406954009,-2684.41386,0.00014718,2]
[395077093,1764406954290,-10000.01,0.00014718,2]
[395077094,1764406954356,-10000.01,0.00014718,2]
[395077095,1764406954480,-10000.01,0.00014718,2]
[395077096,1764406954565,-6145.06828933,0.00014718,2]
[395077097,1764406954577,-300.0,0.00014817,2]
[395077098,1764406954586,-175.30840664,0.0001482,2]
[395077099,1764406954595,-500.0,0.00014828,2]
[395077100,1764406954604,-300.0,0.00014828,2]
[395077101,1764406954616,-2579.63330403,0.00014908,2]
[395077102,1764406954696,-10000.01,0.00014908,2]
[395077103,1764406954823,-6997.7284623,0.00014908,2]
[395077104,1764406954837,-200.0,0.00014909,2]
[395077105,1764406954846,-151.0,0.00014909,2]
[395077106,1764406954856,-553.64373807,0.00014909,2]
[395077107,1764406954871,-151.0,0.00014909,2]
[395077108,1764406954880,-151.0,0.00014909,2]
[395077109,1764406954890,-666.0,0.00014909,2]
[395077110,1764406954899,-500.0,0.00014909,2]
[395077111,1764406954911,-500.0,0.00014909,2]
[395077112,1764406954920,-129.63779963,0.00014909,2]
[395077113,1764406954974,-370.36220037,0.00014909,2]
[395077114,1764406954983,-500.0,0.00014909,2]
[395077115,1764406954993,-500.0,0.00014909,2]
[395077116,1764406955002,-500.0,0.00014909,2]
[395077117,1764406955012,-500.0,0.00014909,2]
[395077118,1764406955021,-500.0,0.00014909,2]
[395077119,1764406955031,-500.0,0.00014909,2]
[395077120,1764406955040,-500.0,0.00014909,2]
[395077121,1764406955050,-500.0,0.00014909,2]
[395077122,1764406955059,-200.0,0.00014909,2]
[395077123,1764406955068,-500.0,0.00014909,2]
[395077124,1764406955078,-500.0,0.00014909,2]
[395077125,1764406955087,-500.0,0.00014909,2]
[395077126,1764406955097,-500.0,0.00014909,2]
[395077127,1764406955106,-500.0,0.00014909,2]
[395077128,1764406955115,-500.0,0.00014909,2]
[395077129,1764406955125,-500.0,0.00014909,2]
[395077130,1764406955134,-500.0,0.00014909,2]
[395077131,1764406955144,-500.0,0.00014909,2]
[395077132,1764406955153,-500.0,0.00014909,2]
[395077133,1764406955162,-429.64779963,0.00014909,2]
[395077134,1764406955727,-70.35220037,0.00014909,2]
[395077135,1764406955736,-500.0,0.00014909,2]
[395077136,1764406955746,-500.0,0.00014909,2]
[395077137,1764406955755,-500.0,0.00014909,2]
[395077138,1764406955764,-500.0,0.00014909,2]
[395077139,1764406955774,-500.0,0.00014909,2]
[395077140,1764406955783,-500.0,0.00014909,2]
[395077141,1764406955793,-500.0,0.00014909,2]
[395077142,1764406955802,-500.0,0.00014909,2]
[395077143,1764406955813,-334.5472959,0.00014909,2]
[395077144,1764406955822,-222.35215359,0.00014909,2]
[395077145,1764406955839,-267.46074303,0.00014909,2]
[395077146,1764406955848,-151.0,0.00014909,2]
[395077147,1764406955859,-151.0,0.00014909,2]
[395077148,1764406955868,-151.0,0.00014909,2]
[395077149,1764406955877,-151.0,0.00014909,2]
[395077150,1764406955887,-151.0,0.00014909,2]
[395077151,1764406955896,-151.0,0.00014909,2]
[395077152,1764406955905,-151.0,0.00014909,2]
[395077153,1764406955915,-151.0,0.00014909,2]
[395077154,1764406955924,-151.0,0.00014909,2]
[395077155,1764406955933,-151.0,0.00014909,2]
[395077156,1764406955942,-151.0,0.00014909,2]
[395077157,1764406955952,-151.0,0.00014909,2]
[395077158,1764406955962,-151.0,0.00014909,2]
[395077159,1764406955972,-151.0,0.00014909,2]
[395077160,1764406955981,-151.0,0.00014909,2]
[395077161,1764406955991,-151.0,0.00014909,2]
[395077162,1764406956001,-151.0,0.00014909,2]
[395077163,1764406956011,-151.0,0.00014909,2]
[395077164,1764406956023,-151.0,0.00014909,2]
[395077165,1764406956032,-151.0,0.00014909,2]
[395077166,1764406956041,-500.0,0.00014917,2]
[395077167,1764406956050,-500.0,0.00014922,2]
[395077168,1764406956060,-500.0,0.00014922,2]
[395077169,1764406956069,-500.0,0.00014922,2]
[395077170,1764406956078,-85.29760711,0.00014932,2]
[395077171,1764406956111,-81.37239289,0.00014932,2]
[395077172,1764406956120,-200.0,0.00014966,2]
[395077173,1764406965448,-205.24650132,0.00014828,2]
[395077174,1764406965472,-50.68063882,0.00014978,2]
[395077175,1764406976093,-1000.0,0.00014718,2]
[395077176,1764406976130,-166.66,0.00014828,2]
[395077177,1764406976179,-159.25044977,0.00014828,2]
[395077178,1764406976189,-161.05936118,0.00014978,2]
[395077179,1764406984701,-1485.63531092,0.00015,2]
[395077180,1764406988218,7028.73937816,0.00014718,2]
[395077181,1764406988240,10000.01,0.00014718,2]
[395077182,1764406988263,10000.01,0.00014718,2]
[395077183,1764406988286,5849.35412184,0.00014718,2]
[395077184,1764406993263,1820.2931148,0.00014828,2]
[395077185,1764406996315,500.0,0.00014833,2]
[395077186,1764407007748,1012.0,0.00014717,2]
[395077187,1764407012549,3431.38427,0.00014978,2]
[395077188,1764407014982,426.04559538,0.00014828,2]
[395077189,1764407019832,300.0,0.00014717,2]
[395077190,1764407019959,269.0,0.00014717,2]
[395077191,1764407022866,1920.54,7.239e-05,2]
[395077192,1764407023043,1920.54,7.62e-05,2]
[395077193,1764407023183,255.92714014,0.00015,2]
[395077194,1764407023296,1920.54,8.001e-05,2]
[395077195,1764407023469,1920.54,8.382e-05,2]
[395077196,1764407023655,1492.92285986,8.763e-05,2]
[395077197,1764407023678,427.61714014,8.763e-05,2]
[395077198,1764407024965,1920.54,9.144e-05,2]
[395077199,1764407025153,1920.54,9.525e-05,2]
[395077200,1764407025299,1920.54,9.906e-05,2]
[395077201,1764407025487,1920.54,0.00010287,2]
[395077202,1764407025651,1890.23285986,0.00010668,2]
[395077203,1764407025690,30.30714014,0.00010668,2]
[395077204,1764407025980,1920.54,0.00011049,2]
[395077205,1764407026191,1920.54,0.0001143,2]
[395077206,1764407026552,1920.54,0.00011811,2]
[395077207,1764407027171,1920.54,0.00012192,2]
[395077208,1764407027443,1920.54,0.00012573,2]
[395077209,1764407027600,1920.54,0.00012954,2]
[395077210,1764407027974,1920.54,0.00013335,2]
[395077211,1764407028175,1920.54,0.00013716,2]
[395077212,1764407028410,1920.54,0.00014097,2]
[395077213,1764407028585,1920.54,0.00014478,2]
[395077214,1764407043713,151.0,0.00014285,2]
[395077215,1764407044938,156.587,0.00014285,2]
[395077216,1764407045490,162.380719,0.00014285,2]
[395077217,1764407047207,151.33087578,0.00014285,2]
[395077218,1764407049812,-160.22906631,0.00014828,2]
[395077219,1764407092662,1825.47852,7.945e-05,2]
[395077220,1764407095726,-227.50857518,0.00014827,2]
[395077221,1764407109757,23739.0076204,0.00025,120]
[395077222,1764407149217,-72.49142482,0.00014827,2]
[395077223,1764407149238,-39.77093369,0.00014828,2]
[395077224,1764407149259,-176.4498635,0.00014828,2]
[395077228,1764407159852,200.0,0.00014357,2]
[395077229,1764407203807,-187.42409288,0.00014827,2]